Cogmind - Beta 14 @@@ ROGUE MODE // 2024.09.14 @ 18:25:58 Player: daxter767676 Result: Destroyed by S-27 Virus with Autogun Performance ------------- Evolutions (6) 3000 Regions Visited (17) 3400 Robots Destroyed (82) 410 Value Destroyed (3902) 3902 Prototype IDs (29) 580 Alien Tech Used (0) 0 Bonus (2055) 2055 TOTAL SCORE: 13347 Bonus ------- High Alert Combat Kills 457 Follower Combat Kills 598 Entered Garrisons 200 Used RIF Installer 500 Aligned with FarCom 300 Cogmind --------- Core Integrity 0/1150 Matter 198/300 Energy 95/100 System Corruption 19% Temperature Cool (0) Movement Walking (120) Location -4/Upper Caves Parts ------- > --- POWER (2) -------- (None) > --- PROPULSION (5) --- Myomer Leg Improved Linear Gravjet > --- UTILITY (8) ------ (None) > --- WEAPON (4) ------- Remote Datajack > --- INVENTORY (5) ---- Experimental Heat Sink Relay Coupler [Heavy] (12) Relay Coupler [Proto] (9) Relay Coupler [Proto] (9) Relay Coupler [Proto] (9) Peak State ------------ > --- POWER ------------ Light Angular Momentum Engine Antimatter Reactor > --- PROPULSION ------- Flexi-carbon Leg Myomer Leg Advanced VSS Leg Armored Huge Wheel > --- UTILITY ---------- Improved Cooling System Huge Storage Unit Advanced Terrain Scan Processor Weapon Cycler Active Sensor Spoofer Powered Armor System Shield Trap Reconfigurator > --- WEAPON ----------- Advanced Plasma Cannon Heavy Linear Accelerator Powered Hammer > --- INVENTORY -------- Light Angular Momentum Engine Light Angular Momentum Engine Light Angular Momentum Engine Improved Quantum Reactor Improved VSS Leg Experimental Heat Sink Improved Cooling System Compact Battery Matter Compressor Transmission Jammer Relay Coupler [Brawler] Relay Coupler [Heavy] Relay Coupler [Behemoth] Relay Coupler [Proto] Relay Coupler [Proto] Relay Coupler [Proto] Relay Coupler [Proto] Improved System Restoration Module Long-range Tractor Beam Heavy Linear Accelerator Heavy Linear Accelerator Rocket Launcher Remote Datajack [Rating: 116] Favorites ----------- Power Ion Engine Engine Ion Engine Power Core Enhanced Nuclear Core Reactor Improved Quantum Reactor Propulsion Wheel Leg Flexi-carbon Leg Wheel Wheel Hover Unit Improved Hover Unit Utility Huge Storage Unit Device Improved Terrain Scanner Storage Huge Storage Unit Processor Advanced Terrain Scan Processor Hackware System Shield Protection Powered Armor Weapon Medium Laser Energy Gun Medium Laser Energy Cannon Advanced Plasma Cannon Ballistic Gun Heavy Battle Rifle Ballistic Cannon Heavy Linear Accelerator Launcher Rocket Launcher Special Weapon Remote Datajack Impact Weapon Powered Hammer Slashing Weapon Greatsword Build | -11 -10 -10 -10 -9 -8 -7 -7 -7 -6 -6 -5 -5 -5 -4 -4 -4 -4 ------- Run | Yrd Mat Min Exi Min Mat Fac Was Fac Fac Gar Fac Upp Upp Fac Was Fac Upp Slots Evolved 12 | . . . . . 4 2 . . 2 . 2 . . 2 . . . Power 1 | . . . . . . . . . 1 . . . . . . . . Propulsion 3 | . . . . . 1 1 . . . . . . . 1 . . . Utility 6 | . . . . . 2 1 . . 1 . 1 . . 1 . . . Weapon 2 | . . . . . 1 . . . . . 1 . . . . . . Parts Attached 132 | 4 . 1 . 6 10 3 . 28 2 23 2 3 1 44 1 3 1 Power 16 | . . . . 1 . . . 2 1 5 . . . 7 . . . Engine 11 | . . . . 1 . . . 1 1 5 . . . 3 . . . Core 2 | . . . . . . . . 1 . . . . . 1 . . . Reactor 3 | . . . . . . . . . . . . . . 3 . . . Propulsion 34 | 2 . . . 3 1 1 . 11 . 4 . . 1 9 . 1 1 Treads . | . . . . . . . . . . . . . . . . . . Leg 11 | . . . . . . . . . . 2 . . 1 7 . . 1 Wheel 20 | 2 . . . 2 1 1 . 10 . 2 . . . 2 . . . Hover 3 | . . . . 1 . . . 1 . . . . . . . 1 . Flight . | . . . . . . . . . . . . . . . . . . Utility 51 | 2 . 1 . 2 6 2 . 9 1 9 1 . . 16 1 1 . Device 37 | 2 . . . 2 5 2 . 8 . 8 . . . 8 1 1 . Storage 2 | . . 1 . . . . . . . . . . . 1 . . . Processor 4 | . . . . . 1 . . 1 . . . . . 2 . . . Hackware 7 | . . . . . . . . . 1 . 1 . . 5 . . . Protection 1 | . . . . . . . . . . 1 . . . . . . . Artifact . | . . . . . . . . . . . . . . . . . . Weapon 31 | . . . . . 3 . . 6 . 5 1 3 . 12 . 1 . Energy Gun 6 | . . . . . 1 . . 2 . 1 . . . 2 . . . Energy Cannon 1 | . . . . . . . . . . . . 1 . . . . . Ballistic Gun 5 | . . . . . 1 . . 2 . . . 2 . . . . . Ballistic Cannon 4 | . . . . . . . . . . 2 . . . 2 . . . Launcher 1 | . . . . . . . . . . . . . . 1 . . . Special Weapon 6 | . . . . . . . . . . . 1 . . 4 . 1 . Impact Weapon 6 | . . . . . 1 . . . . 2 . . . 3 . . . Slashing Weapon 2 | . . . . . . . . 2 . . . . . . . . . Piercing Weapon . | . . . . . . . . . . . . . . . . . . Special Melee Weapon . | . . . . . . . . . . . . . . . . . . Unidentified Prototypes 6 | . . . . . 1 . . 2 . 1 . . . 2 . . . Corrupted Parts 1 | . . . . . . . . . . . . . . 1 . . . System Corruption 1 | . . . . . . . . . . . . . . 1 . . . Parts Lost 58 | . . . . 5 . . 1 6 . 9 . . 1 32 3 . 1 Power 12 | . . . . 1 . . . 1 . 3 . . . 7 . . . Propulsion 19 | . . . . 2 . . 1 3 . 3 . . 1 9 . . . Utility 18 | . . . . 1 . . . 1 . 2 . . . 10 3 . 1 Weapon 9 | . . . . 1 . . . 1 . 1 . . . 6 . . . Highest Loss Streak 13 | . . . . 3 . . 1 6 . 2 . . 1 13 3 . 1 To Critical Strikes . | . . . . . . . . . . . . . . . . . . Average Slot Usage (%) 85 | . 100 100 100 87 81 99 95 89 86 85 84 88 87 83 17 7 19 Engine 8 | . 14 14 14 13 9 7 7 5 3 6 11 11 11 3 . . . Core 1 | . . . . . . . . 1 6 3 . . . 1 . . . Leg 4 | . . . . . . . . . . 4 5 5 9 15 . . 3 Wheel 16 | . 28 28 28 21 26 30 25 26 26 15 11 11 5 2 . . . Hover 1 | . . . . 4 . . . . . . . . . . . 1 5 Device 17 | . 28 21 14 12 24 22 23 23 20 19 17 17 17 17 3 4 5 Storage 8 | . . 7 14 14 9 7 7 7 6 6 5 5 5 4 . . . Processor 3 | . . . . . . 7 7 7 6 6 5 5 5 7 6 . . Hackware 2 | . . . . . . . . . 3 5 2 5 5 8 6 . . Energy Gun 9 | . 28 28 28 20 9 7 7 6 6 2 . . . . . . . Ballistic Cannon 1 | . . . . . . . . . . 4 5 5 5 4 . . . Impact Weapon 2 | . . . . . 1 7 7 1 . 4 5 5 5 4 . . . Peak Build Rating 116 | 9 9 10 9 13 22 27 27 49 56 89 90 92 97 116 30 21 28 Average Rating 48 | 6 9 8 8 11 17 26 26 37 49 75 87 91 95 98 23 12 26 On Entrance 35 | 6 9 9 8 9 11 22 27 25 46 56 83 90 92 97 30 4 21 Naked Turns 25 | . . . . . . . . . . . . . . . 12 13 . Heaviest Build 162 | 15 11 90 90 90 97 97 97 101 110 148 151 157 157 162 1 5 5 Greatest Support 85 | 20 20 20 20 20 30 46 46 64 40 48 38 38 38 85 3 10 25 Greatest Overweight (x) 8 | 1 . 4 4 8 3 2 3 5 2 3 3 4 5 5 . . . Average Overweight (x) 2 | . . 1 4 5 2 2 2 1 2 2 3 3 4 2 . . . Largest Inventory Capacity 25 | 8 5 25 25 25 25 25 25 25 25 25 25 25 25 25 5 5 5 Average Capacity 23 | 7 5 15 25 25 25 25 25 25 25 25 25 25 25 24 5 5 5 Most Carried 25 | 8 5 7 13 25 25 24 25 25 25 25 24 25 25 25 5 5 5 Average Carried 21 | 6 5 5 8 21 24 23 24 24 24 24 23 24 24 22 5 5 5 Final Capacity 25 | 5 5 25 25 25 25 25 25 25 25 25 25 25 25 5 5 5 5 Final Carried 25 | 5 5 7 13 25 25 24 25 25 24 25 24 25 25 5 5 5 5 Class Distribution -------------------- 25% | Mutant 15% | Scavenger-Mutant 13% | Bothacker-Skirmisher 12% | Scavenger-Assassin 10% | Skirmisher 9% | Assassin 5% | Bothacker-Mutant 4% | Bothacker-Tank 3% | Bothacker-Gunner Dominant Class ---------------- Scavenger-Mutant | -10/Materials Mutant | -10/Mines Mutant | -10/Exiles Mutant | -9/Mines Scavenger-Mutant | -8/Materials Scavenger-Assassin | -7/Factory Scavenger-Assassin | -7/Waste Scavenger-Assassin | -7/Factory Assassin | -6/Factory Scavenger-Mutant | -6/Garrison Bothacker-Skirmisher | -5/Factory Bothacker-Tank | -5/Upper Caves Bothacker-Tank | -5/Upper Caves Bothacker-Skirmisher | -4/Factory Mutant | -4/Waste Mutant | -4/Factory Bothacker-Mutant | -4/Upper Caves Resources | -11 -10 -10 -10 -9 -8 -7 -7 -7 -6 -6 -5 -5 -5 -4 -4 -4 -4 ----------- Run | Yrd Mat Min Exi Min Mat Fac Was Fac Fac Gar Fac Upp Upp Fac Was Fac Upp Matter Collected 3381 | 230 10 86 . 64 . . . 257 . 1088 . 95 125 1377 . . 49 Remotely . | . . . . . . . . . . . . . . . . . . Salvage Created 3562 | 152 82 . . 228 . . . 231 . 732 . . 110 2027 . . . Parts 148 | 11 8 . . 12 . . . 11 . 31 . . 6 69 . . . Haulers Intercepted . | . . . . . . . . . . . . . . . . . . Recyclers Shooed 3 | . . . . 1 . . . 1 . . . . . 1 . . . Parts Field Recycled . | . . . . . . . . . . . . . . . . . . Retrieved Matter . | . . . . . . . . . . . . . . . . . . Parts Self-Destructed 10 | . . . . . . . . . . . . 4 6 . . . . Prevented . | . . . . . . . . . . . . . . . . . . Kills | -11 -10 -10 -10 -9 -8 -7 -7 -7 -6 -6 -5 -5 -5 -4 -4 -4 -4 ------- Run | Yrd Mat Min Exi Min Mat Fac Was Fac Fac Gar Fac Upp Upp Fac Was Fac Upp Combat Hostiles Destroyed 58 | . 1 . . 4 . . . 3 . 14 . . 5 31 . . . Melee 8 | . . . . . . . . 3 . 5 . . . . . . . Guns 5 | . 1 . . 4 . . . . . . . . . . . . . Cannons 37 | . . . . . . . . . . 7 . . 4 26 . . . AOE 4 | . . . . . . . . . . . . . . 4 . . . Classes Destroyed 13 | 3 2 . . 1 . . . 2 . 2 . . . 3 . . . Worker 3 | 1 . . . 1 . . . . . . . . . 1 . . . Builder 6 | . . . . . . . . . . . . . . 6 . . . Tunneler 3 | 3 . . . . . . . . . . . . . . . . . Recycler 9 | 1 . . . 1 . . . 1 . . . . . 6 . . . Watcher 3 | . 1 . . . . . . . . 1 . . . 1 . . . Swarmer 8 | . . . . 2 . . . . . . . . 5 1 . . . Cutter 1 | . . . . . . . . . . . . . . 1 . . . Grunt 19 | . 1 . . 2 . . . . . 8 . . . 8 . . . Brawler 1 | . . . . . . . . . . . . . . 1 . . . Sentry 5 | . . . . . . . . 1 . . . . . 4 . . . Hunter 6 | . . . . . . . . . . 4 . . . 2 . . . Programmer 17 | . . . . . . . . 2 . 1 . . . 14 . . . Striker 1 | . . . . . . . . . . 1 . . . . . . . Best Kill Streak 5 | 2 2 . . 3 . . . 1 . 3 . . 5 5 . . . Combat Bots Only 5 | . 1 . . 2 . . . 1 . 3 . . 5 3 . . . Max Kills in Single Turn 2 | 1 1 . . 2 . . . 1 . 1 . . 1 2 . . . Gunslinging . | . . . . . . . . . . . . . . . . . . Exploded 1 | . . . . . . . . . . . . . . 1 . . . Melee 1 | . . . . . . . . 1 . 1 . . . . . . . Uniques/NPCs Destroyed . | . . . . . . . . . . . . . . . . . . Combat | -11 -10 -10 -10 -9 -8 -7 -7 -7 -6 -6 -5 -5 -5 -4 -4 -4 -4 -------- Run | Yrd Mat Min Exi Min Mat Fac Was Fac Fac Gar Fac Upp Upp Fac Was Fac Upp Hostile Shots Fired 574 | . 2 . . 60 . . 3 67 . 117 . . 42 235 5 . 43 Missed 169 | . . . . 17 . . 2 12 . 30 . . 9 78 1 . 20 Damage Taken 8132 | . 16 . . 498 . . 48 559 . 1665 . . 509 4310 178 . 349 Core 1700 | . 10 . . 106 . . . 151 . 216 . . 62 796 178 . 181 Absorbed by Shields 10 | . . . . . . . . . . 10 . . . . . . . Regen/Repaired (Parts) 82 | . . . . . 9 . . 73 . . . . . . . . . Core Remaining (%) 83 | 100 . . . 53 100 . . 78 . 74 . . 93 . . . . Volleys Fired 217 | 12 5 . . 24 . . . 6 . 42 1 1 10 114 . 2 . Largest 2 | 2 2 . . 2 . . . 1 . 1 1 1 2 2 . 1 . Hottest 181 | 100 100 . . 100 . . . 50 . 83 83 83 181 181 . 5 . Shots Fired 315 | 24 10 . . 42 . . . 6 . 42 1 1 20 167 . 2 . Gun 88 | 24 10 . . 42 . . . 6 . 1 . . . 5 . . . Cannon 214 | . . . . . . . . . . 41 1 1 20 151 . . . Launcher 2 | . . . . . . . . . . . . . . 2 . . . Special 11 | . . . . . . . . . . . . . . 9 . 2 . Kinetic 141 | . . . . . . . . . . 41 1 1 10 88 . . . Thermal 161 | 24 10 . . 42 . . . 6 . 1 . . 10 68 . . . Explosive 2 | . . . . . . . . . . . . . . 2 . . . Electromagnetic . | . . . . . . . . . . . . . . . . . . Robot Hit Streak 15 | 7 1 . . 5 . . . 3 . 7 . . 4 15 . 1 . Robot Miss Streak 6 | 2 2 . . 3 . . . 1 . 2 1 2 6 4 . 2 . Penetration Max 1 | . . . . . . . . . . . . . . 1 . . . Secondary Targets 2 | . . . . 2 . . . . . . . . . . . . . Max Gunslinging Chain 1 | . . . . 1 . . . . . . . . . . . . . Shots Hit Robots 207 | 15 4 . . 20 . . . 11 . 42 . . 6 108 . 1 . Core Hits 95 | 6 2 . . 10 . . . 5 . 15 . . 4 53 . . . Critical Kills 3 | . . . . . . . . 1 . . . . 1 1 . . . Critical Parts Destroyed . | . . . . . . . . . . . . . . . . . . Critical Strikes 25 | 5 2 . . 1 . . . 1 . 4 . . 2 10 . . . Burn 8 | 5 2 . . 1 . . . . . . . . . . . . . Meltdown 2 | . . . . . . . . . . . . . 1 1 . . . Blast 13 | . . . . . . . . . . 3 . . 1 9 . . . Smash 1 | . . . . . . . . 1 . . . . . . . . . Sever 1 | . . . . . . . . . . 1 . . . . . . . Melee Attacks 71 | . . . . . 2 . . 22 . 38 . . . 9 . . . Impact 40 | . . . . . 2 . . 7 . 22 . . . 9 . . . Slashing 31 | . . . . . . . . 15 . 16 . . . . . . . Piercing . | . . . . . . . . . . . . . . . . . . Sneak Attacks 2 | . . . . . . . . 1 . 1 . . . . . . . Combat Hostiles . | . . . . . . . . . . . . . . . . . . Follow-up Attacks . | . . . . . . . . . . . . . . . . . . Damage Inflicted 10694 | 185 51 . . 298 . . . 355 . 2574 . . 228 6998 . . 5 Guns 647 | 185 51 . . 298 . . . 50 . . . . . 63 . . . Cannons 8278 | . . . . . . . . . . 1695 . . 228 6355 . . . Explosions 519 | . . . . . . . . . . . . . . 519 . . . Melee 1245 | . . . . . . . . 305 . 879 . . . 61 . . . Ramming 5 | . . . . . . . . . . . . . . . . . 5 Kinetic 6801 | . . . . . . . . . . 1695 . . 65 5041 . . . Thermal 2207 | 185 51 . . 298 . . . 50 . . . . 163 1460 . . . Explosive 436 | . . . . . . . . . . . . . . 436 . . . Electromagnetic . | . . . . . . . . . . . . . . . . . . Impact 462 | . . . . . . . . 56 . 345 . . . 61 . . . Slashing 783 | . . . . . . . . 249 . 534 . . . . . . . Piercing . | . . . . . . . . . . . . . . . . . . Highest Corruption 19 | . . . . . . . . 2 . 3 . . . 11 19 19 19 Average Corruption 4 | . . . . . . . . 1 . 2 . . . 2 16 19 19 Corruption Purged 6 | . . . . . . . . . . . . . . 6 . . . Corruption Blocked . | . . . . . . . . . . . . . . . . . . Effects 48 | . . . . . . . . 4 . 4 . . . 25 5 4 6 Message Errors 13 | . . . . . . . . 3 . . . . . 7 1 1 1 Matter Fused 11 | . . . . . . . . . . 2 . . . 7 1 1 . Heat Flow Errors 5 | . . . . . . . . . . 1 . . . 3 . . 1 Energy Discharges 7 | . . . . . . . . 1 . 1 . . . 2 . 2 1 Data Loss (minor) 4 | . . . . . . . . . . . . . . 3 . . 1 Data Loss (major) 3 | . . . . . . . . . . . . . . 2 . . 1 Alerts 2 | . . . . . . . . . . . . . . . 1 . 1 Misdirections 2 | . . . . . . . . . . . . . . . 2 . . Weapon Failures 1 | . . . . . . . . . . . . . . 1 . . . Overload Shots 1 | . . . . . . . . . . 1 . . . . . . . Overflow Damage 1107 | . . . . . . . . . . 294 . . 7 806 . . . Projectiles 800 | . . . . . . . . . . 105 . . 7 688 . . . Explosions 118 | . . . . . . . . . . . . . . 118 . . . Melee 189 | . . . . . . . . . . 189 . . . . . . . Knockbacks 33 | . . . . . . . . . . 9 . . . 24 . . . Impact 1 | . . . . . . . . . . 1 . . . . . . . Kinetic 27 | . . . . . . . . . . 8 . . . 19 . . . Secondary 5 | . . . . . . . . . . . . . . 5 . . . Self-Inflicted Damage 238 | . . . . . . . . . . . . . . 238 . . . Shots 4 | . . . . . . . . . . . . . . 4 . . . Rammed . | . . . . . . . . . . . . . . . . . . Targets Rammed 2 | . . . . . . . . . . . . . . . . . 2 Kicked 2 | . . . . . . . . . . . . . . . . . 2 Crushed . | . . . . . . . . . . . . . . . . . . Highest Temperature 339 | 195 117 . . 140 . . . . . 173 . . 180 339 . . 247 Average Temperature 75 | 67 48 . . 40 . . . . . 68 . . 87 86 . . 136 Received Heat Transfer 980 | . . . . 207 . . . 120 . 267 . . . 386 . . . Effects 2 | . . . . . . . . . . . . . . 2 . . . Energy Bleed 2 | . . . . . . . . . . . . . . 2 . . . Siege Activations . | . . . . . . . . . . . . . . . . . . Robots Corrupted 4 | . . . . . . . . . . 2 . . . 2 . . . Combat Hostiles 2 | . . . . . . . . . . 2 . . . . . . . Parts Fried 5 | . . . . . . . . . . 2 . . . 3 . . . Impact Corruptions 7 | . . . . . . . . . . 3 . . . 4 . . . Robots Melted 2 | . . . . . . . . . . . . . 1 1 . . . Combat Hostiles 2 | . . . . . . . . . . . . . 1 1 . . . Parts Melted 12 | 1 . . . 1 . . . . . . . . 3 7 . . . Heat Transferred 4505 | 925 296 . . 962 . . . 148 . . . . 250 1924 . . . Parts Sabotaged . | . . . . . . . . . . . . . . . . . . Parts Stolen . | . . . . . . . . . . . . . . . . . . Parts Stripped . | . . . . . . . . . . . . . . . . . . Power Chain Reactions . | . . . . . . . . . . . . . . . . . . Alert | -11 -10 -10 -10 -9 -8 -7 -7 -7 -6 -6 -5 -5 -5 -4 -4 -4 -4 ------- Run | Yrd Mat Min Exi Min Mat Fac Was Fac Fac Gar Fac Upp Upp Fac Was Fac Upp Peak Influence 1100 | 25 68 26 . 80 38 16 5 66 7 1100 604 . . 808 267 165 . Initial 577 | . 16 26 . . . 16 5 . 7 4 577 . . 274 267 165 . Average 201 | 13 32 26 . 16 10 16 3 26 7 463 602 . . 398 259 165 . Maximum Alert Level 4 | . . . . . . . . . . 4 2 . . 3 1 . . Low Security (%) 63 | 100 100 100 . 100 100 100 100 100 100 28 . . . 7 . 100 . Level 1 18 | . . . . . . . . . . 24 . . . 58 100 . . Level 2 10 | . . . . . . . . . . 13 100 . . 30 . . . Level 3 6 | . . . . . . . . . . 30 . . . 3 . . . Level 4 . | . . . . . . . . . . 3 . . . . . . . Level 5 . | . . . . . . . . . . . . . . . . . . High Security . | . . . . . . . . . . . . . . . . . . Max Security . | . . . . . . . . . . . . . . . . . . Squads Dispatched 14 | . 1 . . . 2 . . 2 . . . . . 9 . . . Investigation 1 | . . . . . . . . . . . . . . 1 . . . Extermination 9 | . . . . . . . . 2 . . . . . 7 . . . Reinforcement 4 | . 1 . . . 2 . . . . . . . . 1 . . . Assault . | . . . . . . . . . . . . . . . . . . Garrison . | . . . . . . . . . . . . . . . . . . Intercept . | . . . . . . . . . . . . . . . . . . Searches Triggered . | . . . . . . . . . . . . . . . . . . Construction Impeded . | . . . . . . . . . . . . . . . . . . Haulers Reinforced . | . . . . . . . . . . . . . . . . . . Active Scanning Responses . | . . . . . . . . . . . . . . . . . . Cargo Convoy Interrupts . | . . . . . . . . . . . . . . . . . . Stealth | -11 -10 -10 -10 -9 -8 -7 -7 -7 -6 -6 -5 -5 -5 -4 -4 -4 -4 --------- Run | Yrd Mat Min Exi Min Mat Fac Was Fac Fac Gar Fac Upp Upp Fac Was Fac Upp Distress Signals 4 | . 2 . . . . . . . . . . . . 2 . . . Communications Jammed 45 | . . . . . . . . . . . . . . 45 . . . Distress Signals 42 | . . . . . . . . . . . . . . 42 . . . Times Spotted 134 | . 10 . . 7 6 . 5 5 . 30 1 2 5 44 6 . 13 Peak Tracking Total 8 | . 4 . . 3 4 . 5 1 . 4 1 1 5 6 6 . 8 Tactical Retreats 12 | . 1 . . 1 . . . 1 . 2 . . . 4 . . 3 Traps | -11 -10 -10 -10 -9 -8 -7 -7 -7 -6 -6 -5 -5 -5 -4 -4 -4 -4 ------- Run | Yrd Mat Min Exi Min Mat Fac Was Fac Fac Gar Fac Upp Upp Fac Was Fac Upp Traps Triggered 15 | . . . . . . 1 . 3 . 8 . . . 3 . . . Indirectly . | . . . . . . . . . . . . . . . . . . Trap Hack Attempts . | . . . . . . . . . . . . . . . . . . Triggered . | . . . . . . . . . . . . . . . . . . Disarmed . | . . . . . . . . . . . . . . . . . . Reprogrammed . | . . . . . . . . . . . . . . . . . . Reused 4 | . . . . . . . . 1 . 2 . . . 1 . . . Traps Reconfigurated 16 | . . . . . 1 . . 8 . 3 . . . 4 . . . Traps Extracted . | . . . . . . . . . . . . . . . . . . Installed 1 | . . . . . . . . . . 1 . . . . . . . Triggered 4 | . . . . . . . . 1 . 2 . . . 1 . . . Most Traps Carried 3 | . . . . . . . . . . 3 . . . . . . . Machines | -11 -10 -10 -10 -9 -8 -7 -7 -7 -6 -6 -5 -5 -5 -4 -4 -4 -4 ---------- Run | Yrd Mat Min Exi Min Mat Fac Was Fac Fac Gar Fac Upp Upp Fac Was Fac Upp Machines Disabled 14 | . . . . 3 . . . . . 3 . . . 8 . . . Max in Single Turn 5 | . . . . 1 . . . . . 1 . . . 5 . . . Garrison Access 1 | . . . . . . . . . . . . . . . . 1 . Garrison Relay 1 | . . . . . . . . . . 1 . . . . . . . Machines Repaired . | . . . . . . . . . . . . . . . . . . Machines Dismantled . | . . . . . . . . . . . . . . . . . . Machines Sabotaged . | . . . . . . . . . . . . . . . . . . Overloaded Fab Kills . | . . . . . . . . . . . . . . . . . . Hacking | -11 -10 -10 -10 -9 -8 -7 -7 -7 -6 -6 -5 -5 -5 -4 -4 -4 -4 --------- Run | Yrd Mat Min Exi Min Mat Fac Was Fac Fac Gar Fac Upp Upp Fac Was Fac Upp Machines Accessed 21 | . 1 . 1 . 3 . . 6 1 3 1 1 . 3 . 1 . Terminals 10 | . 1 . . . . . . 3 . 3 1 1 . 1 . . . Fabricators . | . . . . . . . . . . . . . . . . . . Repair Stations 4 | . . . . . 1 . . 2 . . . . . 1 . . . Recycling Units 1 | . . . . . . . . 1 . . . . . . . . . Scanalyzers 2 | . . . . . 2 . . . . . . . . . . . . Garrison Access 3 | . . . . . . . . . 1 . . . . 1 . 1 . Total Hacks 46 | . 1 . 1 . 11 . . 11 2 6 4 1 . 8 . 1 . Successful 31 | . . . 1 . 10 . . 7 1 5 2 1 . 3 . 1 . Failed 15 | . 1 . . . 1 . . 4 1 1 2 . . 5 . . . Catastrophic 3 | . 1 . . . . . . 1 . 1 . . . . . . . Database Lockouts . | . . . . . . . . . . . . . . . . . . Manual 18 | . 1 . 1 . . . . 5 . 3 4 . . 4 . . . Terminals 20 | . 1 . . . . . . 5 . 6 4 1 . 3 . . . Fabricators . | . . . . . . . . . . . . . . . . . . Repair Stations 10 | . . . . . 2 . . 5 . . . . . 3 . . . Recycling Units 1 | . . . . . . . . 1 . . . . . . . . . Scanalyzers 9 | . . . . . 9 . . . . . . . . . . . . Garrison Access 5 | . . . . . . . . . 2 . . . . 2 . 1 . Terminal Hacks 6 | . . . 1 . . . . 1 . 3 . 1 . . . . . Record 1 | . . . . . . . . . . . . 1 . . . . . Emergency Access Points 1 | . . . . . . . . . . 1 . . . . . . . Locate Traps 1 | . . . . . . . . 1 . . . . . . . . . Patrol Navigation 1 | . . . . . . . . . . 1 . . . . . . . Security Stations 1 | . . . . . . . . . . 1 . . . . . . . Derelict Proto ID Bank 1 | . . . 1 . . . . . . . . . . . . . . Fabricator Hacks . | . . . . . . . . . . . . . . . . . . Repair Station Hacks 7 | . . . . . 2 . . 4 . . . . . 1 . . . Scan Component 4 | . . . . . 1 . . 2 . . . . . 1 . . . Repair 3 | . . . . . 1 . . 2 . . . . . . . . . Recycling Unit Hacks . | . . . . . . . . . . . . . . . . . . Scanalyzer 8 | . . . . . 8 . . . . . . . . . . . . Insert Component 4 | . . . . . 4 . . . . . . . . . . . . Analyze 4 | . . . . . 4 . . . . . . . . . . . . Garrison Access Hacks 3 | . . . . . . . . . 1 . . . . 1 . 1 . Unlock Access 1 | . . . . . . . . . 1 . . . . . . . . Seal Access 1 | . . . . . . . . . . . . . . . . 1 . Coupler Status 1 | . . . . . . . . . . . . . . 1 . . . Unauthorized Hacks 7 | . . . . . . . . 2 . 2 2 . . 1 . . . Terminals 5 | . . . . . . . . 1 . 2 2 . . . . . . Track 2 | . . . . . . . . 1 . . 1 . . . . . . Botnet 1 | . . . . . . . . . . 1 . . . . . . . Skim 2 | . . . . . . . . . . 1 1 . . . . . . Fabricators . | . . . . . . . . . . . . . . . . . . Repair Stations . | . . . . . . . . . . . . . . . . . . Recycling Units 1 | . . . . . . . . 1 . . . . . . . . . Recyclers 1 | . . . . . . . . 1 . . . . . . . . . Scanalyzers . | . . . . . . . . . . . . . . . . . . Garrison Access 1 | . . . . . . . . . . . . . . 1 . . . Eject 1 | . . . . . . . . . . . . . . 1 . . . Data Cores Recovered 1 | . . . . . . . . . . . 1 . . . . . . Used . | . . . . . . . . . . . . . . . . . . Hacking Detections 11 | . 1 . . . 3 . . 2 . 2 1 . . 2 . . . Full Trace Events . | . . . . . . . . . . . . . . . . . . Feedback Events . | . . . . . . . . . . . . . . . . . . Feedback Blocked . | . . . . . . . . . . . . . . . . . . Robot Schematics Acquired . | . . . . . . . . . . . . . . . . . . Robots Built . | . . . . . . . . . . . . . . . . . . Authchips . | . . . . . . . . . . . . . . . . . . Time . | . . . . . . . . . . . . . . . . . . Total Robot Build Rating . | . . . . . . . . . . . . . . . . . . Part Schematics Acquired 4 | . . . . . 4 . . . . . . . . . . . . Parts Built . | . . . . . . . . . . . . . . . . . . Authchips . | . . . . . . . . . . . . . . . . . . Time . | . . . . . . . . . . . . . . . . . . Total Part Build Rating . | . . . . . . . . . . . . . . . . . . Parts Repaired 3 | . . . . . 1 . . 2 . . . . . . . . . Time 108 | . . . . . 38 . . 70 . . . . . . . . . Parts Recycled . | . . . . . . . . . . . . . . . . . . Recycled Matter . | . . . . . . . . . . . . . . . . . . Retrieved Matter . | . . . . . . . . . . . . . . . . . . Retrieved Components . | . . . . . . . . . . . . . . . . . . Parts Scanalyzed 4 | . . . . . 4 . . . . . . . . . . . . Part Schematics Acquired 4 | . . . . . 4 . . . . . . . . . . . . Parts Damaged . | . . . . . . . . . . . . . . . . . . Bothacking | -11 -10 -10 -10 -9 -8 -7 -7 -7 -6 -6 -5 -5 -5 -4 -4 -4 -4 ------------ Run | Yrd Mat Min Exi Min Mat Fac Was Fac Fac Gar Fac Upp Upp Fac Was Fac Upp Used RIF Installer 1 | . . . . . . . . . . 1 . . . . . . . Robots Hacked 5 | . . . . . . . . . . . . . . 4 . 1 . Non-combat 4 | . . . . . . . . . . . . . . 3 . 1 . Combat 1 | . . . . . . . . . . . . . . 1 . . . Robot Hacks Applied 7 | . . . . . . . . . . . . . . 6 . 1 . parse_system 2 | . . . . . . . . . . . . . . 2 . . . no_distress 1 | . . . . . . . . . . . . . . . . 1 . find_recycling 1 | . . . . . . . . . . . . . . 1 . . . wipe_record 1 | . . . . . . . . . . . . . . 1 . . . streamctrl_high 1 | . . . . . . . . . . . . . . 1 . . . formatsys_low 1 | . . . . . . . . . . . . . . 1 . . . Relay Couplers Released 13 | . . . . . . . . . . 4 . . . 9 . . . Ejected 3 | . . . . . . . . . . . . . . 3 . . . Machine Destruction 4 | . . . . . . . . . . 4 . . . . . . . Programmers 6 | . . . . . . . . . . . . . . 6 . . . Attached 5 | . . . . . . . . . . . . . . 5 . . . Fabnet Peak Effective % . | . . . . . . . . . . . . . . . . . . Robots Rewired 1 | . . . . . . . . . . 1 . . . . . . . Allies Hacked . | . . . . . . . . . . . . . . . . . . Hacks Repelled . | . . . . . . . . . . . . . . . . . . Allies | -11 -10 -10 -10 -9 -8 -7 -7 -7 -6 -6 -5 -5 -5 -4 -4 -4 -4 -------- Run | Yrd Mat Min Exi Min Mat Fac Was Fac Fac Gar Fac Upp Upp Fac Was Fac Upp Total Allies 5 | . . . . . . . . . . 3 . . . 2 . . . Largest Group 2 | . . . . . . . . . . 2 1 1 1 1 . . . Highest-Rated Group 157 | . . . . . . . . . . 157 119 119 119 116 . . . Highest-Rated Ally 119 | . . . . . . . . . . 119 119 119 119 116 . . . Total Orders . | . . . . . . . . . . . . . . . . . . Ally Attacks 47 | . . . . . . . . . . 40 1 4 2 . . . . Total Damage 2034 | . . . . . . . . . . 1789 34 143 68 . . . . Kills 17 | . . . . . . . . . . 14 1 2 . . . . . Allies Corrupted . | . . . . . . . . . . . . . . . . . . Allies Melted . | . . . . . . . . . . . . . . . . . . Intel | -11 -10 -10 -10 -9 -8 -7 -7 -7 -6 -6 -5 -5 -5 -4 -4 -4 -4 ------- Run | Yrd Mat Min Exi Min Mat Fac Was Fac Fac Gar Fac Upp Upp Fac Was Fac Upp Robot Analysis Total . | . . . . . . . . . . . . . . . . . . Derelict Logs Recovered 5 | . . . . 3 . . . . . . . 2 . . . . . Drone Launches . | . . . . . . . . . . . . . . . . . . Drone Recoveries . | . . . . . . . . . . . . . . . . . . Exploration | -11 -10 -10 -10 -9 -8 -7 -7 -7 -6 -6 -5 -5 -5 -4 -4 -4 -4 ------------- Run | Yrd Mat Min Exi Min Mat Fac Was Fac Fac Gar Fac Upp Upp Fac Was Fac Upp Turns Passed 11446 | 130 173 139 386 3399 218 263 101 1250 25 2094 64 361 169 2385 52 92 145 Spaces Moved 5747 | 73 82 119 273 1175 130 86 85 719 19 1226 42 244 77 833 99 171 294 Core 260 | . . . . . . . . . . . . . . 46 99 115 . Treads . | . . . . . . . . . . . . . . . . . . Legs 496 | 50 . . . . . . . . . . . . . 444 . . 2 Wheels 4643 | 23 82 119 273 1175 130 86 85 719 19 1226 42 244 77 343 . . . Hover 348 | . . . . . . . . . . . . . . . . 56 292 Flight . | . . . . . . . . . . . . . . . . . . Fastest Speed 40 | 80 80 80 140 140 110 115 115 105 110 110 135 135 150 50 50 40 40 Average Speed 137 | 109 80 104 140 168 120 115 119 118 110 128 135 142 171 196 50 46 48 Slowest Speed 345 | 120 80 140 140 200 125 115 135 175 110 135 135 150 175 345 50 50 120 Overloaded Moves . | . . . . . . . . . . . . . . . . . . Propulsion Burnouts . | . . . . . . . . . . . . . . . . . . Robots Hopped . | . . . . . . . . . . . . . . . . . . Cave-ins Triggered . | . . . . . . . . . . . . . . . . . . Exploration Rate (%) 35 | 4 34 34 62 96 21 2 61 18 1 97 2 44 12 25 84 3 43 Regions Visited 17 Branch Regions 6 Pre-discovered Areas 1 | . . . . 1 . . . . . . . . . . . . . Known Exits Taken 1 | . . . . . . . . . 1 . . . . . . . . Unknown Exits Taken 11 | 1 1 1 1 1 1 . . 1 . . 1 1 1 . . 1 . Scrap Searched 9 | . . 1 . 2 . . . . . . . 4 1 . . . 1 Spaces Dug 21 | . . . . . 2 . . 13 . . . . . 6 . . . Terrain Destroyed 183 | . . . . . 2 . . 13 . 7 2 1 14 144 . . . Melee 20 | . . . . . 2 . . 13 . . . . . 5 . . . Projectile 76 | . . . . . . . . . . 7 2 1 14 52 . . . AOE 87 | . . . . . . . . . . . . . . 87 . . . Terrain Rammed . | . . . . . . . . . . . . . . . . . . Walls Destroyed . | . . . . . . . . . . . . . . . . . . Machines Disabled . | . . . . . . . . . . . . . . . . . . Actions | -11 -10 -10 -10 -9 -8 -7 -7 -7 -6 -6 -5 -5 -5 -4 -4 -4 -4 --------- Run | Yrd Mat Min Exi Min Mat Fac Was Fac Fac Gar Fac Upp Upp Fac Was Fac Upp Total 8841 | 100 179 134 277 2546 185 251 85 1077 25 1627 48 256 90 1385 100 179 297 Wait 2452 | . 91 10 . 1328 40 161 . 251 . 192 3 2 2 368 . 4 . Move 5730 | 72 81 118 272 1174 129 86 84 718 19 1222 41 243 76 833 98 170 294 Hop . | . . . . . . . . . . . . . . . . . . Pick Up 98 | 4 1 3 5 13 4 . 1 21 2 29 1 3 1 10 . . . Fast Attach 50 | 3 . 1 . 3 2 1 . 12 1 6 . 2 . 14 1 3 1 Attach 41 | . . . . 2 4 2 . 3 1 8 2 . 1 18 . . . Detach 6 | 2 . . . 1 . 1 . . . . . . . 2 . . . Swap 41 | 1 . . . 1 4 . . 13 . 9 . 1 . 12 . . . Drop 80 | 6 1 2 . . . . . 31 2 30 . 4 . 4 . . . Fire 217 | 12 5 . . 24 . . . 6 . 42 1 1 10 114 . 2 . Melee 71 | . . . . . 2 . . 22 . 38 . . . 9 . . . Ram 1 | . . . . . . . . . . . . . . . 1 . . Kick 2 | . . . . . . . . . . . . . . . . . 2 Crush . | . . . . . . . . . . . . . . . . . . Escape Stasis 47 | . . . . . . . . . . 47 . . . . . . . Rewire 4 | . . . . . . . . . . 3 . . . 1 . . . Trap 1 | . . . . . . . . . . 1 . . . . . . . Miscellaneous . | . . . . . . . . . . . . . . . . . . Route ------- -11/Scrapyard -10/Materials -10/Mines -10/Exiles -9/Mines -8/Materials -7/Factory -7/Waste -7/Factory -6/Factory -6/Garrison (discovered 3 exits: *Fac x3) -5/Factory -5/Upper Caves -5/Upper Caves -4/Factory (discovered 2 exits: [*Upp] / Arm) -4/Waste -4/Factory -4/Upper Caves History --------- Turn | Location | Event 16 | -11/Scrapyard | Discovered new exit (range 3) 131 | -11/Scrapyard | Entered Materials 237 | -10/Materials | Met 8R-AWN 289 | -10/Materials | Discovered new exit (range 13) 304 | -10/Materials | Entered Mines 305 | -10/Mines | Followed 8R-AWN into the Mines 309 | -10/Mines | Build established: Scavenger-Mutant 343 | -10/Mines | A weapon hastily lodged in a ceiling crevice suddenly fell to the ground 438 | -10/Mines | Discovered new exit (range 5) 443 | -10/Mines | Entered Exiles 477 | -10/Exiles | Welcomed by 8R-AWN 499 | -10/Exiles | Met EX-HEX 550 | -10/Exiles | Met EX-BIN 567 | -10/Exiles | Aligned with FarCom system 568 | -10/Exiles | Given EX-Vault access code 600 | -10/Exiles | Opened EX-Vault 609 | -10/Exiles | Found Trap Reconfigurator 636 | -10/Exiles | Warned to stay clear of 0b10 Research branches 675 | -10/Exiles | Met EX-DEC 679 | -10/Exiles | Build established: Mutant 817 | -10/Exiles | Discovered new exit (range 11) 829 | -10/Exiles | Left Exiles lab with Trap Reconfigurator 829 | -10/Exiles | Entered Mines 840 | -9/Mines | Met a Derelict bent on vengeance 892 | -9/Mines | Lost 3 parts (1p1n1u) 1028 | -9/Mines | Received a Rocket Launcher from a helpful Derelict 1262 | -9/Mines | Discovered new exit (range 12) 1272 | -9/Mines | Learned Materials trap positions 1312 | -9/Mines | Learned Materials security intel 1573 | -9/Mines | Build established: Skirmisher 1675 | -9/Mines | Learned location of Recycling (-8) 2756 | -9/Mines | Build established: Mutant 4228 | -9/Mines | Entered Materials 4228 | -8/Materials | Evolved 4 slots: Propulsion x1, Utility x2, Weapon x1 4229 | -8/Materials | Loaded intel: 17 trap records 4402 | -8/Materials | Repaired Imp. Terrain Scanner 4443 | -8/Materials | Discovered new exit (range 3) 4446 | -8/Materials | Entered Factory 4446 | -7/Factory | Evolved 2 slots: Propulsion x1, Utility x1 4700 | -7/Factory | Build established: Scavenger-Assassin 4709 | -7/Factory | Sucked down chute 4709 | -7/Factory | Entered Waste 4719 | -7/Waste | Spotted C-40 Crusher 4732 | -7/Waste | Spotted C-40 Crusher 4745 | -7/Waste | Spotted C-40 Crusher 4747 | -7/Waste | Spotted C-40 Crusher 4777 | -7/Waste | Spotted C-40 Crusher 4788 | -7/Waste | Spotted C-40 Crusher 4788 | -7/Waste | Crushed by Compactor (1 part destroyed, 1 dropped) 4798 | -7/Waste | Discovered new exit (range 10) 4810 | -7/Waste | Entered Factory 5019 | -7/Factory | Repaired Hvy. Battle Rifle 5041 | -7/Factory | Lost 6 parts (1p3n1u1w) 5117 | -7/Factory | Repaired Com. Wheel 5629 | -7/Factory | Found Powered Armor 5968 | -7/Factory | Discovered new exit (range 16) 6060 | -7/Factory | Entered another Factory area 6060 | -6/Factory | Evolved 2 slots: Power x1, Utility x1 6085 | -6/Factory | Identified exit to Garrison 6085 | -6/Factory | Entered Garrison 6151 | -6/Garrison | Learned Factory security intel 6246 | -6/Garrison | Build established: Assassin 6401 | -6/Garrison | Triggered checkpoint 6635 | -6/Garrison | Triggered checkpoint 6820 | -6/Garrison | Found embedded Infiltrators 6821 | -6/Garrison | Triggered checkpoint 7134 | -6/Garrison | Discovered new exit (range 12) 7188 | -6/Garrison | Build established: Scavenger-Mutant 7221 | -6/Garrison | Spotted Striker 7238 | -6/Garrison | Rewired Executioner 7246 | -6/Garrison | Destroyed Striker 7307 | -6/Garrison | Attempted to access garrison exit controls, blocked by remote lockdown 7347 | -6/Garrison | Triggered checkpoint 7463 | -6/Garrison | Triggered checkpoint 7557 | -6/Garrison | Discovered new exit (range 12) 7654 | -6/Garrison | Triggered checkpoint 7767 | -6/Garrison | Triggered checkpoint 7825 | -6/Garrison | Discovered new exit (range 15) 7847 | -6/Garrison | Spotted B-75 Beast 7946 | -6/Garrison | Installed Relay Interface Framework 7991 | -6/Garrison | Allies destroyed B-75 Beast 7994 | -6/Garrison | Found Relay Coupler [Proto] 8002 | -6/Garrison | Found Relay Coupler [Proto] 8006 | -6/Garrison | Found Relay Coupler [Proto] 8009 | -6/Garrison | Found Relay Coupler [Proto] 8101 | -6/Garrison | Garrison Relay disabled 8179 | -6/Garrison | Entered Factory 8179 | -5/Factory | Accompanied by 1 ally 8179 | -5/Factory | Evolved 2 slots: Utility x1, Weapon x1 8231 | -5/Factory | Discovered new exit (range 6) 8243 | -5/Factory | Entered Upper Caves 8243 | -5/Upper Caves | Accompanied by 1 ally 8332 | -5/Upper Caves | Attracted the attention of an 0b10 checkpoint 8338 | -5/Upper Caves | Learned 4 Factory zone layouts 8555 | -5/Upper Caves | Build established: Bothacker-Tank 8582 | -5/Upper Caves | Discovered new exit (range 15) 8604 | -5/Upper Caves | Entered another Upper Caves area 8604 | -5/Upper Caves | Accompanied by 1 ally 8759 | -5/Upper Caves | Discovered new exit (range 8) 8773 | -5/Upper Caves | Entered Factory 8773 | -4/Factory | Evolved 2 slots: Propulsion x1, Utility x1 8774 | -4/Factory | Identified exit to Armory 9099 | -4/Factory | Build established: Bothacker-Skirmisher 9880 | -4/Factory | Spotted B-86 Titan 9884 | -4/Factory | Hijacked Titan 7a control node with streamctrl_high 9939 | -4/Factory | Lost 3 parts (1p1n1w) 10537 | -4/Factory | Lost 3 parts (1p1n1w) 10654 | -4/Factory | Lost 3 parts (1n1u1w) 11068 | -4/Factory | Build established: Bothacker-Gunner 11107 | -4/Factory | Discovered new exit (range 10) 11108 | -4/Factory | System corruption reached 10% 11138 | -4/Factory | Core integrity fell below 50% 11158 | -4/Factory | Manually triggered Chute Trap 11158 | -4/Factory | Sucked down chute 11158 | -4/Factory | Entered Waste 11171 | -4/Waste | Lost 13 parts (2p3n5u3w) 11173 | -4/Waste | EMP discharged 11183 | -4/Waste | Spotted C-40 Crusher 11183 | -4/Waste | Spotted C-40 Crusher 11183 | -4/Waste | Spotted C-40 Crusher 11186 | -4/Waste | Spotted C-40 Crusher 11187 | -4/Waste | Spotted C-40 Crusher 11187 | -4/Waste | Spotted C-40 Crusher 11195 | -4/Waste | Crushed by Compactor (1 part destroyed, 2 dropped) 11196 | -4/Waste | Discovered new exit (range 14) 11198 | -4/Waste | Crushed by Compactor (1 part destroyed, 1 dropped) 11199 | -4/Waste | Crushed by Compactor (1 part destroyed) 11202 | -4/Waste | Core integrity fell below 20% 11210 | -4/Waste | Entered Factory 11230 | -4/Factory | Lost 3 parts (3u) 11280 | -4/Factory | Discovered new exit (range 13) 11302 | -4/Factory | Entered Upper Caves 11447 | -4/Upper Caves | Destroyed by S-27 Virus with Autogun Last Messages --------------- 11331_ Searching scrap... 11331_ Found Myomer Leg. 11331_ Found 49 Matter. 11331_ Acquired Myomer Leg. 11333_ Acquired 49 matter. 11343_ System corrupted: Component data lost. 11346_ 4F-S2D(k) breaks down the debris. 11349_ MC-BBH(k) breaks down the debris. 11351_ RE-42C(k) breaks down the debris. 11363_ System corrupted: Heat flow error (+284). 11378_ System corrupted: Substantial component data lost. 11416_ System corrupted: IFF burst signal emitted. 11428_ Penetrated by Slug. 11439_ Drone sends a signal. 11440_ System corrupted: Energy discharge (-22). 11440_ Imp. Focal Shield destroyed. 11443_ Kicked S-27 Virus. 11444_ Kicked S-27 Virus out of the way. Map ----- +----------------------------------------------------+ | ??????????# #####??#### ##????## ???? | | ??????????# #??# ###### ??????? | | ??????????### #??# #????????? | | ????????????## ### #??# #?????????? | | ?????????????###?# #### ##????????? | | ?????????????????# #????????? | | ?????????????????##### #????????? | | ?????????????????????# ## #????????? | | ?????????????????????# ##### #????????? | | ?????????????????????## #???## #????????? | | ??????????????????????## ##???## #????????? | | ???????????????????????# ##????# #????????? | | ???????????????????????# ##?????## ##???????? | | ???????????????????????## ##??????## ##????#?? | | ????????????????????????# #??###### ### ##? | | ???????????????????????## ##?## ## #? | | ???????????????????????# #?## #? | | ???????????????????????# #?# #? | | ???????????????????????# ## #? | | ???????????????????????# ## ### ####? | | ??????????????????????## ### ##?# ####???? | | ??????????????????????# #?###??## ####??????? | | ???????????????# ?????#s ##???????#####?????????? | | ???????????????# ###s s#??????????????????????? | | ???????????????# % s#??????????????????????? | | ????????????????# s @#??????????????????????? | | ????????????????## #### * ?????????????????????? | | ?????????????????#????# %%% ???????????????????? | | ?????????????????????#% ##??????????????????? | | ????????????????????# ##???????????????????? | | ??????????????????? #????????????????????? | | ?????????????????? ????????????????????? | | ?????????????????####### ???????????????????? | | ???????????????????????## ???????????????????? | | ?????????????????????????### ??????????????????? | | ???????????????????????????? ??????????????????? | | ???????????????????????????? #?????????????????? | | ????????????????????????????####?????????????????? | | ?????????????????????????????????????????????????? | | ?????????????????????????????????????????????????? | | ?????????????????????????????????????????????????? | | ?????????????????????????????????????????????????? | | ?????????????????????????????????????????????????? | | ?????????????????????????????????????????????????? | | ?????????????????????????????????????????????????? | | ?????????????????????????????????????????????????? | | ?????????????????????????????????????????????????? | | ?????????????????????????????????????????????????? | | ?????????????????????????????????????????????????? | | ?????????????????????????????????????????????????? | +----------------------------------------------------+ Best States ------------- Heat Dissipation 96 Energy Generation 43 Energy Capacity 565 Matter Stores 300 Matter Capacity 300 Sight Range 16 Terrain Scan Range 16 Terrain Scan Density 210 Jamming Range 12 Armor Coverage 400 Resistance: KI 25 Weapon Cycling 15 Evasion (%) 57 Target Analysis 8 Core Analysis 6 Defensive Hacking 14 Relay Coupler Types 3 Relay Coupler Value 101 Authchip Count 4 Item Schematics ----------------- Nuclear Core | -8/Materials | Scanalyzed Adv. Targeting Computer | -8/Materials | Scanalyzed Melee Analysis Suite | -8/Materials | Scanalyzed Humpback | -8/Materials | Scanalyzed Robot Schematics ------------------ None Fabricated ------------ Nothing Alien Tech Used ----------------- None Achievements -------------- Below Streaker Wheee! Challenges ------------ None Game ------ Seed DisruptorThrusterMace Manual? 0 Play Time 01:54:39 Cumulative 130.0 hours Start 2024.09.14 @ 16:20:18 End 2024.09.14 @ 18:25:58 Sessions 1 Manual Loads 0 Difficulty Rogue Special Mode None Game No. 127 Rogue 125 Adventurer 2 Explorer 0 Win Type - Total 0 Types 0/0/0/0/0/0/0/0/0 Lore% 57 Gallery% 58 Achievement% 44 Wizard Run 0 Options --------- Layout 2 ASCII 0 Keyboard 1 Movement Vi Keybinds 0 Fullscreen 1 Font 24/Smallcaps Map View 50x44 Zoom Use 2% Tactical HUD 1 Map Filters NONE Filters NONE Steam SD RUN: 1a7dfa5c-bda3-483e-99f1-35c5cffbaba8